[Event "11th LCC FIDE Open 2019"]
[Site "London"]
[Date "2019.11.30"]
[Round "2.21"]
[White "Bates, Richard A"]
[Black "Bates, Caspar J"]
[Result "1-0"]
[ECO "E13"]
[WhiteElo "2342"]
[BlackElo "2120"]
[Annotator "NA"]
[PlyCount "85"]
[EventDate "2019.11.29"]
[EventType "swiss"]
[EventCountry "ENG"]
[SourceTitle "playchess.com"]
[Source "ChessBase"]
[SourceQuality "1"]
[TimeControl "40/5400+30:1800+30"]

1. d4 {[%emt 0:00:14]} Nf6 {[%emt 0:00:00]} 2. Nf3 {[%emt 0:00:38]} b6 {[%emt 0:00:08]} 3. c4 {[%emt 0:02:33]} Bb7 {[%emt 0:00:18]} 4. Nc3 {[%emt 0:02:10]} e6 {[%emt 0:00:14]} 5. Bg5 {[%emt 0:08:53]} h6 {[%emt 0:03:30]} 6. Bh4 {[%emt 0:00:18]} Bb4 {[%emt 0:00:12]} 7. Nd2 {[%emt 0:00:44]} Nc6 {[%emt 0:03:50]} 8. e3 {[%emt 0:09:27]} Qe7 {[%emt 0:00:59]} 9. Rc1 {[%emt 0:02:02]} O-O-O {[%emt 0:10:03]} 10. a3 {[%emt 0:02:32]} Bxc3 $1 {[%emt 0:00:29]} 11. Rxc3 {[%emt 0:00:16]} g5 {[%emt 0:00:56]} 12. Bg3 {[%emt 0:00:30]} d5 {[%emt 0:00:02]} 13. c5 {[%emt 0:01:50]} e5 {[%emt 0:01:26]} 14. cxb6 {[%emt 0:08:25]} axb6 {[%emt 0:01:06]} 15. Qc2 {[%emt 0:05:16]} Nxd4 $1 {[%emt 0:03:52] [#]} 16. Rxc7+ $1 {[%emt 0:00:44] Decoy} Qxc7 $14 {[%emt 0:00:02]} 17. Qxc7+ {[%emt 0:00:11]} Kxc7 {[%emt 0:00:07]} 18. Bxe5+ {[%emt 0:00:07]} Rd6 {[%emt 0:03:21]} 19. exd4 {[%emt 0:02:58]} Re8 {[%emt 0:01:22]} 20. Be2 {[%emt 0:08:00]} Ng4 {[%emt 0:15:23]} 21. Bxd6+ {[%emt 0:09:51]} Kxd6 {[%emt 0:00:02]} 22. Nb1 {[%emt 0:00:07]} Ba6 {[%emt 0:07:28]} 23. Nc3 {[%emt 0:00:08]} Nf6 {[%emt 0:01:16]} 24. f3 {[%emt 0:01:16]} g4 {[%emt 0:05:56]} 25. Kf2 {[%emt 0:03:50]} Bxe2 {[%emt 0:00:36]} 26. Nxe2 {[%emt 0:00:08]} gxf3 {[%emt 0:00:15]} 27. gxf3 {[%emt 0:00:06]} Rc8 {[%emt 0:03:50]} 28. Rc1 {[%emt 0:00:19]} Rxc1 {[%emt 0:01:24]} 29. Nxc1 {[%emt 0:00:06]} Nh5 {[%emt 0:00:01]} 30. Ne2 {[%emt 0:04:35]} Ng7 {[%emt 0:02:25]} 31. Ng3 {[%emt 0:01:26]} Ke6 {[%emt 0:01:25]} 32. Ke3 {[%emt 0:00:44]} Ne8 {[%emt 0:00:35]} 33. Nh5 {[%emt 0:03:07]} b5 {[%emt 0:00:09]} 34. b3 {[%emt 0:00:41]} Kd6 {[%emt 0:01:08]} 35. Kf4 {[%emt 0:01:16]} Ke6 {[%emt 0:00:41]} 36. a4 {[%emt 0:01:24]} bxa4 {[%emt 0:00:36]} 37. bxa4 {[%emt 0:00:05]} Kd6 {[%emt 0:00:08]} 38. Ng3 {[%emt 0:03:17]} Kc6 {[%emt 0:00:40]} 39. Nf5 {[%emt 0:00:35]} Kb6 {[%emt 0:01:19]} 40. Nxh6 {[%emt 0:00:35]} f6 {[%emt 0:00:42]} 41. Kf5 {[%emt 0:31:38]} Ka5 {[%emt 0:30:41]} 42. Ke6 {[%emt 0:00:23]} Kxa4 {[%emt 0:00:26]} 43. Nf5 {[%emt 0:00:29]} 1-0

[Event "11th LCC FIDE Open 2019"]
[Site "London"]
[Date "2019.11.30"]
[Round "2.22"]
[White "Pollack, Oscar"]
[Black "Bradbury, Neil H"]
[Result "1-0"]
[ECO "B42"]
[WhiteElo "2112"]
[BlackElo "2326"]
[Annotator "NA"]
[PlyCount "57"]
[EventDate "2019.11.29"]
[EventType "swiss"]
[EventCountry "ENG"]
[SourceTitle "playchess.com"]
[Source "ChessBase"]
[SourceQuality "1"]
[TimeControl "40/5400+30:1800+30"]

1. e4 {[%emt 0:00:00]} c5 {[%emt 0:07:44]} 2. Nf3 {[%emt 0:00:00]} e6 {[%emt 0:00:09]} 3. d4 {[%emt 0:00:00]} cxd4 {[%emt 0:00:15]} 4. Nxd4 {[%emt 0:00:01]} a6 {[%emt 0:00:06]} 5. Bd3 {[%emt 0:00:12]} Qc7 {[%emt 0:00:40]} 6. O-O {[%emt 0:00:52]} Nf6 {[%emt 0:00:06]} 7. Re1 {[%emt 0:03:13]} Bc5 {[%emt 0:06:42]} 8. Nb3 {[%emt 0:03:54]} Bd6 {[%emt 0:04:56]} 9. h3 {[%emt 0:01:20]} b5 {[%emt 0:06:50]} (9... O-O $11 {remains equal.}) 10. a4 {[%emt 0:03:28]} bxa4 {[%emt 0:20:33]} 11. Rxa4 {[%emt 0:01:41]} Nc6 {[%emt 0:00:29]} 12. N1d2 $14 {[%emt 0:09:34]} O-O {[%emt 0:14:55]} 13. Nc4 {[%emt 0:03:09]} Bh2+ {[%emt 0:04:10]} 14. Kh1 {[%emt 0:00:50]} d5 {[%emt 0:01:34]} 15. exd5 {[%emt 0:03:37]} exd5 {[%emt 0:00:01]} 16. Ne3 {[%emt 0:06:46]} Be6 {[%emt 0:01:41]} 17. Nf1 {[%emt 0:04:28]} Be5 {[%emt 0:05:44]} 18. Rh4 {[%emt 0:05:03]} h6 {[%emt 0:14:57]} 19. Bxh6 {[%emt 0:01:47]} gxh6 {[%emt 0:00:02]} 20. Qd2 {[%emt 0:00:38]} Ne4 {[%emt 0:03:24]} 21. Bxe4 {[%emt 0:02:50]} dxe4 {[%emt 0:00:02]} 22. Qxh6 {[%emt 0:00:12]} Rfd8 {[%emt 0:03:08]} 23. Nc5 {[%emt 0:03:24]} Bf5 {[%emt 0:05:14]} 24. Nxe4 {[%emt 0:02:47]} Bg7 {[%emt 0:00:00]} 25. Nf6+ {[%emt 0:01:33]} Kf8 {[%emt 0:00:00]} 26. Qg5 {[%emt 0:01:24]} Bg6 {[%emt 0:00:00]} 27. Qc5+ {[%emt 0:01:05]} Rd6 {[%emt 0:00:00]} 28. Rd4 {[%emt 0:02:48]} Rad8 {[%emt 0:00:00]} 29. Rxd6 {[%emt 0:00:21]} 1-0

[Event "11th LCC FIDE Open 2019"]
[Site "London"]
[Date "2019.11.30"]
[Round "2.23"]
[White "Zujev, Oleg"]
[Black "Tanmay Chopra"]
[Result "1-0"]
[ECO "E46"]
[WhiteElo "2316"]
[BlackElo "2082"]
[Annotator "NA"]
[PlyCount "67"]
[EventDate "2019.11.29"]
[EventType "swiss"]
[EventCountry "ENG"]
[SourceTitle "playchess.com"]
[Source "ChessBase"]
[SourceQuality "1"]
[TimeControl "40/5400+30:1800+30"]

1. d4 {[%emt 0:00:00]} Nf6 {[%emt 0:00:00]} 2. c4 {[%emt 0:00:00]} e6 {[%emt 0:00:00]} 3. Nc3 {[%emt 0:00:00]} Bb4 {[%emt 0:00:00]} 4. e3 {[%emt 0:00:00]} O-O {[%emt 0:00:03]} 5. Nge2 {[%emt 0:00:00]} d5 {[%emt 0:03:35]} 6. a3 {[%emt 0:00:00]} Bd6 {[%emt 0:00:11]} 7. Ng3 {[%emt 0:00:05]} c5 {[%emt 0:06:12]} 8. dxc5 {[%emt 0:01:09]} Bxc5 {[%emt 0:00:01]} 9. Be2 {[%emt 0:00:23] E46: Nimzo-Indian: Rubinstein: 4 e3 0-0 5 Ne2 without early Bd3} (9. b4 Be7 10. cxd5 Nxd5 11. Nxd5 Qxd5 12. Qxd5 exd5 13. Bb2 a5 14. bxa5 Rxa5 15. Be2 Nc6 16. O-O g6 17. a4 {½-½ (40) Rozum,I (2572)-Lysyj,I (2623) Yaroslavl 2019}) 9... Nc6 {[%emt 0:02:57]} 10. b4 {[%emt 0:00:52]} Bd6 {[%emt 0:00:36]} 11. Bb2 {[%emt 0:03:22]} a6 {[%emt 0:03:40]} 12. O-O {[%emt 0:09:03]} dxc4 {[%emt 0:02:57]} 13. Bxc4 {[%emt 0:00:19]} b5 {[%emt 0:04:35]} 14. Bb3 {[%emt 0:02:04]} Bb7 {[%emt 0:04:18]} 15. f4 {[%emt 0:03:47]} Ne7 {[%emt 0:02:11]} 16. e4 {[%emt 0:05:38]} (16. Qe2 $11) 16... Bc7 $146 {[%emt 0:00:50]} ({Predecessor:} 16... e5 17. Nxb5 Bxb4 18. axb4 axb5 19. Qxd8 Raxd8 {1-0 (24) Tran,M (2359)-Dudin,G (2073) Moscow 2018}) 17. Qe2 {[%emt 0:04:15]} Bb6+ {[%emt 0:02:56]} 18. Kh1 {[%emt 0:00:13]} Nc6 {[%emt 0:00:09]} 19. Ba2 {[%emt 0:12:28]} Ra7 {[%emt 0:09:22]} 20. Nh5 $11 {[%emt 0:14:30]} Nxh5 {[%emt 0:05:42]} 21. Qxh5 {[%emt 0:00:10]} Nd4 {[%emt 0:08:00]} 22. Rad1 {[%emt 0:05:44]} Qa8 {[%emt 0:03:50]} 23. Nd5 {[%emt 0:04:32]} exd5 {[%emt 0:01:42]} 24. Rxd4 {[%emt 0:00:40]} Qd8 {[%emt 0:05:47]} 25. Qg4 {[%emt 0:08:16]} g6 {[%emt 0:10:46]} 26. Qd1 {[%emt 0:09:29]} Ra8 {[%emt 0:11:54]} 27. Bxd5 {[%emt 0:01:48]} Bxd5 {[%emt 0:00:03]} 28. Rxd5 {[%emt 0:00:07]} Qe7 {[%emt 0:00:10]} 29. Qf3 {[%emt 0:01:51]} Rac8 {[%emt 0:00:57]} 30. f5 {[%emt 0:04:08]} Rc4 {[%emt 0:01:41]} 31. Be5 {[%emt 0:02:20]} Qh4 {[%emt 0:03:02]} 32. fxg6 {[%emt 0:01:22]} hxg6 {[%emt 0:00:03]} 33. Bd6 {[%emt 0:00:49]} Bc7 {[%emt 0:00:37]} 34. g3 {[%emt 0:00:57]} 1-0

[Event "11th LCC FIDE Open 2019"]
[Site "London"]
[Date "2019.11.30"]
[Round "2.24"]
[White "Seymour, Timothy P"]
[Black "Cox, John J"]
[Result "0-1"]
[ECO "A40"]
[WhiteElo "2107"]
[BlackElo "2306"]
[Annotator "NA"]
[PlyCount "62"]
[EventDate "2019.11.29"]
[EventType "swiss"]
[EventCountry "ENG"]
[SourceTitle "playchess.com"]
[Source "ChessBase"]
[SourceQuality "1"]
[TimeControl "40/5400+30:1800+30"]

1. c4 {[%emt 0:00:00]} g6 {[%emt 0:15:07]} 2. d4 {[%emt 0:00:16]} Bg7 {[%emt 0:00:03]} 3. Nf3 {[%emt 0:00:16]} c5 {[%emt 0:00:07]} 4. d5 {[%emt 0:00:26]} d6 {[%emt 0:00:08]} 5. e3 {[%emt 0:18:11]} e6 {[%emt 0:04:14]} 6. Nc3 {[%emt 0:02:13]} exd5 {[%emt 0:00:49]} 7. cxd5 {[%emt 0:00:19]} Nf6 {[%emt 0:00:07]} 8. Be2 {[%emt 0:02:55]} O-O {[%emt 0:00:06]} 9. Nd2 {[%emt 0:00:11]} Na6 {[%emt 0:10:54]} 10. O-O {[%emt 0:00:09]} Nc7 {[%emt 0:00:10]} 11. e4 {[%emt 0:02:03]} Rb8 {[%emt 0:02:01]} 12. a4 {[%emt 0:01:02]} b6 {[%emt 0:00:15]} 13. Nc4 {[%emt 0:05:14]} Ba6 $14 {[%emt 0:04:56]} 14. Bg5 {[%emt 0:01:53]} Qd7 {[%emt 0:18:39]} 15. f4 {[%emt 0:29:11]} Bxc4 {[%emt 0:08:25]} 16. Bxc4 {[%emt 0:00:01]} a6 {[%emt 0:06:12]} 17. e5 {[%emt 0:03:16]} Nfe8 {[%emt 0:00:13]} 18. e6 {[%emt 0:05:09]} fxe6 {[%emt 0:00:06]} 19. dxe6 {[%emt 0:00:08]} Nxe6 {[%emt 0:00:05]} 20. Qb3 {[%emt 0:14:48]} N8c7 {[%emt 0:02:42]} 21. Rae1 {[%emt 0:01:29]} Rfe8 {[%emt 0:04:52]} 22. Nd5 {[%emt 0:00:37]} b5 {[%emt 0:00:20]} 23. axb5 {[%emt 0:03:19]} axb5 {[%emt 0:00:04]} 24. Nxc7 {[%emt 0:01:31]} bxc4 {[%emt 0:00:06]} 25. Qxc4 {[%emt 0:00:06]} Bd4+ {[%emt 0:07:32]} 26. Kh1 {[%emt 0:00:03]} Qxc7 {[%emt 0:00:27]} 27. Rxe6 {[%emt 0:00:20]} Qf7 {[%emt 0:04:35]} 28. Rfe1 {[%emt 0:05:25]} Rxe6 {[%emt 0:03:07]} 29. Rxe6 {[%emt 0:00:03]} Rxb2 {[%emt 0:02:15]} 30. h4 {[%emt 0:00:16]} Rb1+ {[%emt 0:01:39]} 31. Kh2 {[%emt 0:00:02]} Re1 {[%emt 0:00:59]} 0-1

[Event "11th LCC FIDE Open 2019"]
[Site "London"]
[Date "2019.11.30"]
[Round "2.25"]
[White "Risting, Eivind Olav"]
[Black "Coote, Trevor D"]
[Result "1-0"]
[ECO "D38"]
[WhiteElo "2298"]
[BlackElo "2075"]
[Annotator "NA"]
[PlyCount "50"]
[EventDate "2019.11.29"]
[EventType "swiss"]
[EventCountry "ENG"]
[SourceTitle "playchess.com"]
[Source "ChessBase"]
[SourceQuality "1"]
[TimeControl "40/5400+30:1800+30"]

1. d4 {[%emt 0:01:39]} e6 {[%emt 0:00:00]} 2. c4 {[%emt 0:00:12]} Bb4+ {[%emt 0:00:00]} 3. Nc3 {[%emt 0:02:16]} d5 {[%emt 0:02:16]} 4. Nf3 {[%emt 0:01:09]} Nf6 {[%emt 0:03:35]} 5. Qa4+ {[%emt 0:02:20]} Nc6 {[%emt 0:00:11]} 6. e3 {[%emt 0:00:14]} Bd7 {[%emt 0:00:30]} 7. Qc2 {[%emt 0:00:30]} Qe7 {[%emt 0:02:17]} 8. Bd2 {[%emt 0:02:23]} O-O {[%emt 0:03:54]} 9. a3 {[%emt 0:06:09]} Bxc3 {[%emt 0:00:15]} 10. Bxc3 {[%emt 0:00:09]} Ne4 {[%emt 0:01:50]} 11. Bd3 {[%emt 0:03:01]} f5 {[%emt 0:03:22]} 12. b4 {[%emt 0:06:02]} Nxc3 {[%emt 0:15:22]} 13. Qxc3 {[%emt 0:00:14]} Rac8 {[%emt 0:02:12]} 14. O-O {[%emt 0:07:37]} Rf6 {[%emt 0:09:02]} 15. b5 {[%emt 0:08:30]} Nd8 {[%emt 0:01:41]} 16. Qa5 {[%emt 0:01:09]} b6 {[%emt 0:07:01]} 17. Qxa7 $18 {[%emt 0:05:36]} Rh6 {[%emt 0:03:57]} 18. c5 {[%emt 0:13:15]} Nf7 {[%emt 0:04:52]} 19. cxb6 {[%emt 0:03:58]} cxb6 {[%emt 0:00:39]} 20. Rfc1 {[%emt 0:00:38]} Rd8 {[%emt 0:04:29]} 21. Rc7 {[%emt 0:02:25]} Qd6 {[%emt 0:04:16]} 22. Rac1 {[%emt 0:02:36]} f4 {[%emt 0:10:09]} 23. Ne5 {[%emt 0:08:12]} fxe3 {[%emt 0:14:18]} 24. Rxd7 {[%emt 0:00:44]} exf2+ {[%emt 0:00:32]} 25. Kf1 {[%emt 0:02:44]} Rxd7 {[%emt 0:01:44]} 1-0

[Event "11th LCC FIDE Open 2019"]
[Site "London"]
[Date "2019.11.30"]
[Round "2.26"]
[White "Van Zyl-Rudd, Jack"]
[Black "Wilks, Simon"]
[Result "1-0"]
[ECO "C11"]
[WhiteElo "2290"]
[BlackElo "2071"]
[Annotator "NA"]
[PlyCount "73"]
[EventDate "2019.11.29"]
[EventType "swiss"]
[EventCountry "ENG"]
[SourceTitle "playchess.com"]
[Source "ChessBase"]
[SourceQuality "1"]
[TimeControl "40/5400+30:1800+30"]

1. e4 {[%emt 0:00:00]} e6 {[%emt 0:12:56]} 2. d4 {[%emt 0:00:00]} d5 {[%emt 0:00:03]} 3. Nc3 {[%emt 0:00:05]} Nf6 {[%emt 0:00:11]} 4. e5 {[%emt 0:00:24]} Nfd7 {[%emt 0:02:57]} 5. f4 {[%emt 0:00:17]} c5 {[%emt 0:00:06]} 6. Nf3 {[%emt 0:00:06]} Nc6 {[%emt 0:00:03]} 7. Be3 {[%emt 0:00:11]} a6 {[%emt 0:00:42]} 8. Qd2 {[%emt 0:00:05]} b5 {[%emt 0:00:06]} 9. Nd1 {[%emt 0:00:07]} Be7 {[%emt 0:02:12]} 10. c3 {[%emt 0:01:55]} b4 {[%emt 0:03:05]} 11. Bd3 {[%emt 0:02:45]} h6 {[%emt 0:09:31]} 12. O-O {[%emt 0:01:35]} O-O {[%emt 0:14:26]} 13. f5 {[%emt 0:01:55]} bxc3 $14 {[%emt 0:14:47]} 14. bxc3 {[%emt 0:00:08]} exf5 {[%emt 0:04:37]} 15. Bxh6 {[%emt 0:03:54]} cxd4 {[%emt 0:12:04]} 16. cxd4 {[%emt 0:11:01]} Nb6 {[%emt 0:05:29]} 17. Bf4 {[%emt 0:07:32]} Nb4 {[%emt 0:03:51]} 18. Bb1 {[%emt 0:02:32]} Nc4 {[%emt 0:00:59]} 19. Qf2 {[%emt 0:01:03]} Na3 {[%emt 0:03:13]} 20. Qg3 {[%emt 0:00:59]} Qb6 {[%emt 0:04:29]} 21. Ne3 {[%emt 0:09:05]} Qg6 {[%emt 0:01:08]} 22. Bg5 {[%emt 0:00:00]} Ra7 {[%emt 0:02:42]} 23. Qh4 {[%emt 0:04:42]} Bxg5 {[%emt 0:00:29]} 24. Nxg5 {[%emt 0:00:07]} Qh6 {[%emt 0:00:42]} 25. Qg3 {[%emt 0:01:44]} Nxb1 {[%emt 0:01:05]} 26. Raxb1 {[%emt 0:00:01]} Nc6 {[%emt 0:00:17]} 27. Rf4 {[%emt 0:01:37]} f6 {[%emt 0:00:45]} 28. exf6 {[%emt 0:01:05]} Qxf6 {[%emt 0:00:16]} 29. Rb6 {[%emt 0:08:26]} Qd6 {[%emt 0:00:44]} 30. Qf3 {[%emt 0:01:35]} Be6 {[%emt 0:00:30]} 31. Nxf5 {[%emt 0:01:08]} Bxf5 {[%emt 0:00:19]} 32. Rxf5 {[%emt 0:00:05]} Raa8 {[%emt 0:00:44]} 33. Qh5 {[%emt 0:01:14]} Rxf5 {[%emt 0:00:21]} 34. Qh7+ {[%emt 0:00:06]} Kf8 {[%emt 0:00:04]} 35. Qxf5+ {[%emt 0:00:04]} Ke8 {[%emt 0:00:30]} 36. Qf7+ {[%emt 0:00:25]} Kd8 {[%emt 0:00:18]} 37. Ne6+ {[%emt 0:00:06]} 1-0

[Event "11th LCC FIDE Open 2019"]
[Site "London"]
[Date "2019.11.30"]
[Round "2.27"]
[White "Marusenko, Petr"]
[Black "Cumming, Rhys"]
[Result "0-1"]
[ECO "A21"]
[WhiteElo "2085"]
[BlackElo "2284"]
[Annotator "NA"]
[PlyCount "74"]
[EventDate "2019.11.29"]
[EventType "swiss"]
[EventCountry "ENG"]
[SourceTitle "playchess.com"]
[Source "ChessBase"]
[SourceQuality "1"]
[TimeControl "40/5400+30:1800+30"]

1. c4 {[%emt 0:03:40]} e5 {[%emt 0:01:39]} 2. Nc3 {[%emt 0:01:03]} Bb4 {[%emt 0:00:31]} 3. Nd5 {[%emt 0:00:16]} Bc5 {[%emt 0:00:42]} 4. e3 {[%emt 0:00:08]} Nf6 {[%emt 0:01:52]} 5. g3 {[%emt 0:02:45]} Nxd5 {[%emt 0:09:55]} 6. cxd5 {[%emt 0:00:15]} O-O {[%emt 0:00:07]} 7. Bg2 {[%emt 0:00:02]} d6 {[%emt 0:03:03]} 8. Ne2 {[%emt 0:03:10]} Nd7 {[%emt 0:02:47]} 9. O-O $1 {[%emt 0:00:15]} Bb6 {[%emt 0:03:09]} 10. Nc3 {[%emt 0:08:30]} a6 {[%emt 0:03:12]} 11. b3 {[%emt 0:03:45]} f5 {[%emt 0:06:22]} 12. Bb2 {[%emt 0:03:20]} Nf6 {[%emt 0:01:58]} 13. Rc1 {[%emt 0:02:10]} Bd7 $15 {[%emt 0:04:36]} 14. Qe2 {[%emt 0:11:30]} Rc8 {[%emt 0:09:18]} 15. Rfd1 {[%emt 0:03:15]} Be8 {[%emt 0:13:28]} 16. d3 {[%emt 0:08:32]} Kh8 {[%emt 0:03:51]} 17. a4 {[%emt 0:01:21]} Qd7 {[%emt 0:05:57]} 18. b4 {[%emt 0:01:09]} f4 {[%emt 0:00:54]} 19. a5 {[%emt 0:00:43]} Ba7 {[%emt 0:00:06]} 20. Rf1 {[%emt 0:10:57]} Bh5 {[%emt 0:02:52]} 21. Bf3 {[%emt 0:01:18]} Qh3 {[%emt 0:00:34]} 22. Bxh5 {[%emt 0:04:54]} Nxh5 {[%emt 0:00:22]} 23. exf4 {[%emt 0:00:03]} Nxg3 {[%emt 0:05:10]} 24. Qf3 {[%emt 0:02:21]} Rxf4 {[%emt 0:00:30]} 25. Qxg3 {[%emt 0:00:07]} Rg4 {[%emt 0:00:06]} 26. Ne4 {[%emt 0:00:03]} Rxg3+ {[%emt 0:02:53]} 27. hxg3 {[%emt 0:00:04]} h5 {[%emt 0:01:34]} 28. Rfd1 {[%emt 0:03:32]} Rf8 {[%emt 0:01:55]} 29. Rc2 {[%emt 0:01:31]} h4 {[%emt 0:00:51]} 30. d4 {[%emt 0:00:29]} Qg4 {[%emt 0:00:56]} 31. Re1 {[%emt 0:00:19]} Bxd4 {[%emt 0:01:52]} 32. Bxd4 {[%emt 0:00:16]} exd4 {[%emt 0:00:01]} 33. Rd2 {[%emt 0:00:49]} Re8 {[%emt 0:04:42]} 34. Rxd4 {[%emt 0:00:10]} hxg3 {[%emt 0:00:54]} 35. fxg3 {[%emt 0:00:11]} Qf3 {[%emt 0:01:00]} 36. Rc4 {[%emt 0:07:04]} Re5 {[%emt 0:00:04]} 37. Rc3 {[%emt 0:00:17]} Qxc3 {[%emt 0:01:41]} 0-1

[Event "11th LCC FIDE Open 2019"]
[Site "London"]
[Date "2019.11.30"]
[Round "2.28"]
[White "Balaji, Aaravamudhan"]
[Black "Stoyanov, Viktor"]
[Result "1-0"]
[ECO "E90"]
[WhiteElo "2080"]
[BlackElo "2272"]
[Annotator "NA"]
[PlyCount "99"]
[EventDate "2019.11.29"]
[EventType "swiss"]
[EventCountry "ENG"]
[SourceTitle "playchess.com"]
[Source "ChessBase"]
[SourceQuality "1"]
[TimeControl "40/5400+30:1800+30"]

1. d4 {[%emt 0:00:00]} Nf6 {[%emt 0:01:39]} 2. c4 {[%emt 0:00:00]} c5 {[%emt 0:00:40]} 3. d5 {[%emt 0:00:00]} g6 {[%emt 0:00:09]} 4. Nc3 {[%emt 0:00:21]} Bg7 {[%emt 0:00:07]} 5. e4 {[%emt 0:00:06]} d6 {[%emt 0:00:05]} 6. Nf3 {[%emt 0:00:34]} O-O {[%emt 0:00:10]} 7. h3 {[%emt 0:00:11]} Na6 {[%emt 0:00:40]} 8. Bd3 {[%emt 0:01:34]} e6 {[%emt 0:01:03]} 9. O-O {[%emt 0:00:15]} Nc7 {[%emt 0:00:56]} 10. Be3 {[%emt 0:03:16]} Re8 {[%emt 0:01:06]} 11. Qc2 {[%emt 0:04:08]} exd5 {[%emt 0:07:32]} 12. cxd5 {[%emt 0:00:55]} b5 {[%emt 0:07:06]} 13. e5 {[%emt 0:14:33]} c4 {[%emt 0:08:35]} 14. Nxb5 {[%emt 0:10:35]} Nxb5 {[%emt 0:01:57]} (14... cxd3 $15 15. Qxc7 dxe5 16. Qxd8 Rxd8) 15. Bxc4 {[%emt 0:03:04]} ({Of course not} 15. exf6 cxd3 16. Qxd3 Qxf6 $15) ({But not} 15. Qxc4 $2 dxe5 16. Qxb5 Bd7 $19) 15... Na3 {[%emt 0:24:54]} 16. bxa3 {[%emt 0:03:28]} Bf5 {[%emt 0:01:26]} 17. Qb3 {[%emt 0:04:27]} Rb8 {[%emt 0:00:36]} 18. Qa4 {[%emt 0:07:04]} Bd7 $16 {[%emt 0:01:33]} 19. Qxa7 {[%emt 0:08:46]} dxe5 {[%emt 0:00:22]} 20. d6 {[%emt 0:06:03]} Ne4 {[%emt 0:06:22]} 21. Rfd1 {[%emt 0:06:54]} Rf8 {[%emt 0:01:21]} 22. Rac1 {[%emt 0:04:15]} Kh8 {[%emt 0:01:26]} 23. Qc7 {[%emt 0:05:00]} f5 {[%emt 0:00:49]} 24. Qxd8 {[%emt 0:02:42]} Rfxd8 {[%emt 0:00:08]} 25. Ng5 {[%emt 0:03:45]} Nxg5 {[%emt 0:01:05]} 26. Bxg5 {[%emt 0:00:01]} Rdc8 {[%emt 0:00:44]} 27. Bb3 {[%emt 0:00:58]} e4 {[%emt 0:01:26]} 28. Rc7 {[%emt 0:00:54]} h6 {[%emt 0:01:46]} 29. Be7 {[%emt 0:01:04]} Bb5 {[%emt 0:00:35]} 30. Rxc8+ {[%emt 0:01:44]} Rxc8 {[%emt 0:00:05]} 31. d7 {[%emt 0:00:46]} Bxd7 {[%emt 0:00:07]} 32. Rxd7 {[%emt 0:00:08]} Rc1+ {[%emt 0:00:06]} 33. Rd1 {[%emt 0:00:25]} Rc7 {[%emt 0:00:11]} 34. Bb4 {[%emt 0:00:42]} Be5 {[%emt 0:00:14]} 35. Bd6 {[%emt 0:01:05]} Bxd6 {[%emt 0:00:15]} 36. Rxd6 {[%emt 0:00:02]} Kg7 {[%emt 0:00:12]} 37. a4 {[%emt 0:00:15]} f4 {[%emt 0:00:32]} 38. Re6 {[%emt 0:00:41]} Rc1+ {[%emt 0:00:16]} 39. Kh2 {[%emt 0:00:02]} Re1 {[%emt 0:00:27]} 40. a5 {[%emt 0:00:23]} Re2 {[%emt 0:00:45]} 41. a6 {[%emt 0:30:44]} Rxf2 {[%emt 0:30:05]} 42. a7 {[%emt 0:00:23]} f3 {[%emt 0:00:10]} 43. a8=Q {[%emt 0:00:26]} Rxg2+ {[%emt 0:00:06]} 44. Kh1 {[%emt 0:00:04]} h5 {[%emt 0:00:07]} 45. Re7+ {[%emt 0:01:06]} Kh6 {[%emt 0:00:15]} 46. Qf8+ {[%emt 0:00:08]} Kg5 {[%emt 0:00:06]} 47. Re5+ {[%emt 0:00:10]} Kh4 {[%emt 0:00:09]} 48. Qf4+ {[%emt 0:00:17]} Kxh3 {[%emt 0:00:06]} 49. Be6+ {[%emt 0:00:52]} Rg4 {[%emt 0:00:05]} 50. Qh2# {[%emt 0:00:33]} 1-0